[Event "Bangabandhu Premier Div League 2023-24"]
[Site "Dhaka"]
[Date "2024.02.09"]
[Round "9.1"]
[White "Abu Sufian, Shakil"]
[Black "Mehdi Hasan Parag"]
[Result "1-0"]
[ECO "C88"]
[WhiteElo "2199"]
[BlackElo "2171"]
[Annotator "TA"]
[PlyCount "95"]
[EventDate "2024.02.01"]
[EventCountry "BAN"]
[SourceTitle "playchess.com"]
[Source "ChessBase"]
[SourceQuality "1"]
[TimeControl "40/5400+30:1800+30"]

{[%evp 23,94,25,32,57,67,40,93,19,110,121,126,123,119,118,123,118,121,65,65,65,54,65,68,65,64,50,71,47,75,50,75,66,91,79,117,117,118,118,135,131,154,111,160,136,205,204,264,241,262,232,250,253,260,245,244,250,322,244,268,268,303,300,371,348,378,376,702,691,754,741,4827,4377,1268]} 1. e4 {[%emt 0:00:02]} e5 {[%emt 0:00:10]} 2. Nf3 {[%emt 0:00:30]} Nc6 {[%emt 0:00:30]} 3. Bb5 {[%emt 0:00:30]} a6 4. Ba4 Nf6 {[%emt 0:00:00]} 5. O-O {[%emt 0:00:00]} Be7 {[%emt 0:00:03]} 6. Re1 {[%emt 0:00:00]} b5 {[%emt 0:00:02]} 7. Bb3 {[%emt 0:00:00]} O-O {[%emt 0:00:15]} 8. a4 {[%emt 0:00:17]} Rb8 {[%emt 0:00:34]} 9. axb5 {[%emt 0:04:21]} axb5 {[%emt 0:00:03]} 10. c3 {[%emt 0:01:25]} d6 {[%emt 0:00:36]} 11. d4 {[%emt 0:02:20]} exd4 {[%emt 0:01:51]} 12. cxd4 {[%emt 0:00:22]} Bg4 {[%emt 0:00:30]} 13. Nc3 {[%emt 0:00:54]} Qd7 {[%emt 0:02:23]} 14. Be3 {[%emt 0:10:45]} Nb4 {[%emt 0:05:52]} (14... Bh5 $14) 15. Qe2 {[%emt 0:14:01]} (15. e5 $16 Ne8 (15... dxe5 16. dxe5 Qxd1 17. Rexd1 $18) 16. h3) 15... Rfe8 (15... c5 $11 {keeps the balance.}) 16. e5 $16 dxe5 {[%emt 0:08:18] [#]} 17. Bxf7+ $1 {[%emt 0:10:56][%mdl 512]} Kxf7 {[%emt 0:00:15]} 18. Nxe5+ {[%emt 0:00:04]} Kg8 {[%emt 0:01:20]} 19. Nxd7 {[%emt 0:00:40]} Bxe2 {[%emt 0:00:19] This pair of bishops is nice.} 20. Nxf6+ {[%emt 0:00:54]} (20. Nxb8 $16 Bc4 21. Na6) 20... Bxf6 $14 {[%emt 0:00:21]} 21. Rxe2 {[%emt 0:00:04]} (21. Nxe2 Nc2 22. g3 Nxe3 23. fxe3 Rxe3 $11) 21... c6 {[%emt 0:06:02]} 22. g3 {[%emt 0:01:55]} Rbd8 {[%emt 0:04:26]} 23. Rd2 {[%emt 0:00:45]} Rd7 {[%emt 0:01:27]} 24. Rad1 {[%emt 0:01:28]} Kf7 {[%emt 1:07:13]} 25. Kg2 {[%emt 0:00:38]} h6 {[%emt 0:00:00]} 26. Kf3 {[%emt 0:00:30]} Red8 {[%emt 0:00:00]} 27. Ne4 {[%emt 0:01:01] White now steadily converts the win.} Rd5 {[%emt 0:00:00]} 28. g4 {[%emt 0:02:50]} g5 {[%emt 0:00:00]} 29. Ng3 {[%emt 0:01:12]} Kg6 {[%emt 0:00:00]} 30. Nf5 {[%emt 0:01:09]} R5d7 {[%emt 0:03:00]} 31. Rc1 {[%emt 0:46:27]} Rd5 {[%emt 0:00:00]} 32. Kg3 {[%emt 0:00:30]} R8d7 {[%emt 0:01:00]} ({Black should try} 32... Re8 33. Kf3 Rd7) 33. Rc3 {[%emt 0:00:30]} Bd8 {[%emt 0:00:00]} (33... h5 $16 {keeps fighting.} 34. h3 Ra7) 34. Re2 $18 {[%emt 0:00:00]} Bf6 {[%emt 0:00:00]} 35. Rb3 {[%emt 0:00:00]} Na6 {[%emt 0:00:00]} 36. Rc2 {[%emt 0:00:00]} Rc7 {[%emt 0:00:00]} 37. Rc1 {[%emt 0:02:00]} Rc8 {[%emt 0:02:30]} 38. Ra3 {[%emt 0:00:00]} Nb8 {[%emt 0:00:00]} 39. Ra8 {[%emt 0:00:00]} Rdd8 {[%emt 0:00:00]} 40. Kf3 {[%emt 0:00:00]} Rd5 {[%emt 0:00:00]} 41. b3 {[%emt 0:11:20]} Rcd8 {[%emt 0:13:45]} 42. Bd2 {[%emt 0:08:33]} Re8 {[%emt 0:18:45]} 43. Bb4 {[%emt 0:06:20] And now Bd6 would win.} h5 {[%emt 0:00:00] Strongly threatening ...hxg4+.} 44. h3 {[%emt 0:07:17][%cal Bh2h3,Bh3g4][%mdl 32]} Red8 {[%emt 0:01:00] Prevents Bd6} (44... Rdd8 45. Bd6 Rh8 46. Bxb8 Rxb8) 45. Be7 {[%emt 0:00:30] White is clearly winning.} hxg4+ {[%emt 0:00:30] Black is weak on the dark squares} 46. hxg4 {[%emt 0:00:30]} Rh8 {[%emt 0:00:00] [#]} 47. Rxb8 $1 {[%emt 0:00:30][%mdl 512]} Rxb8 {[%emt 0:01:00]} (47... Kf7 48. Rxh8) 48. Rxc6 {[%emt 0:00:00] Weighted Error Value: White=0.14 (very precise) /Black=0.29 (precise) .  Mistake:       	White=2     	Black=5      Inaccurate:     	White=1     	Black=2      OK:         	White=16    	Black=6      Best:        	White=2     	Black=2} 1-0

[Event "Bangabandhu Premier Div League 2023-24"]
[Site "Dhaka"]
[Date "2024.02.09"]
[Round "9.2"]
[White "Chigaev, Maksim"]
[Black "Mohammed Abdul, Malek"]
[Result "1-0"]
[ECO "C70"]
[WhiteElo "2622"]
[BlackElo "2047"]
[Annotator "TA"]
[PlyCount "92"]
[EventDate "2024.02.01"]
[EventCountry "BAN"]
[SourceTitle "playchess.com"]
[Source "ChessBase"]
[SourceQuality "1"]
[TimeControl "40/5400+30:1800+30"]

{[%evp 9,92,15,7,6,5,10,22,16,23,16,25,28,63,59,72,71,74,61,70,41,42,34,40,50,41,14,28,28,30,32,31,27,72,58,49,50,90,87,96,50,85,53,69,0,0,-6,0,-27,-15,-32,0,-11,0,0,0,0,19,36,126,116,118,117,368,347,353,355,347,367,414,409,416,407,559,584,593,583,665,647,949,935,1331,1283,1345,989,888]} 1. e4 {[%emt 1:31:00]} e5 {[%emt 0:00:37]} 2. Nf3 {[%emt 0:00:00]} Nc6 {[%emt 0:00:03]} 3. Bb5 {[%emt 0:00:00]} a6 {[%emt 0:00:08]} 4. Ba4 {[%emt 0:00:00]} Be7 5. c4 Nf6 {[%emt 0:02:31]} 6. d3 {[%emt 0:00:00]} d6 {[%emt 0:00:32]} 7. h3 {[%emt 0:00:00]} O-O {[%emt 0:00:07]} 8. O-O {The position is equal.} Nd7 {[%emt 0:01:11]} 9. Be3 {[%emt 0:00:00]} f5 {[%emt 0:01:37]} 10. exf5 {[%emt 0:00:00] Black must now prevent g4.} Rxf5 {[%emt 0:00:02]} 11. Nc3 Nf8 {[%emt 0:04:53]} 12. d4 {[%emt 0:00:00]} Nxd4 {[%emt 0:02:38]} 13. Nxd4 {[%emt 0:00:00]} exd4 {[%emt 0:00:07]} 14. Bxd4 {[%emt 0:00:00]} c6 {[%emt 0:01:57]} 15. Bc2 {[%emt 0:00:00]} Rf7 {[%emt 0:00:39]} 16. Re1 Be6 {[%emt 1:21:28]} 17. Qd3 {[%emt 0:00:00][%cal Oe1e6]} Bf5 {[%emt 0:00:00]} 18. Qe2 {[%emt 0:00:00] Threatens to win with Bxf5.} Bxc2 {[%emt 0:00:00]} 19. Qxc2 {[%emt 0:09:00]} Qd7 {[%emt 0:00:00]} 20. Rad1 {[%emt 0:00:00][%cal Od4e5]} Ne6 {[%emt 0:00:00] [#]} 21. Be5 $1 {[%emt 0:01:00]} Rd8 {[%emt 0:02:30]} 22. Bg3 {[%emt 0:00:00]} c5 {[%emt 0:00:00]} 23. Qe4 {[%emt 0:00:00] White has more active pieces.} Nd4 {[%emt 0:01:00]} 24. Qd5 {[%emt 0:01:30]} (24. f3 $16) 24... Kf8 {[%emt 0:00:30]} 25. a3 {[%emt 0:00:30]} (25. Ne2 {is interesting.} Rf5 26. Qe4 d5 27. cxd5 Qxd5 28. Nxd4 Qxe4 29. Rxe4 Rxd4 30. Rdxd4 cxd4 31. Rxd4 Ra5 32. Bd6) 25... Qc6 {[%emt 0:00:30]} 26. Qxc6 {[%emt 0:00:00]} (26. f3 $14) 26... bxc6 $11 {[%emt 0:00:30]} 27. Na4 {[%emt 0:00:00]} Bf6 {[%emt 0:00:30]} 28. f3 {[%emt 0:00:00]} Re7 {[%emt 0:00:30]} 29. Kf1 {[%emt 0:02:00] Repels Ne2} Rxe1+ {[%emt 0:00:30]} 30. Bxe1 {[%emt 0:00:30]} Nf5 {[%emt 0:00:00]} 31. Rd3 {[%emt 0:00:00] Dodges Ne3+} Bd4 {[%emt 0:00:00]} 32. Bf2 {[%emt 0:00:00] Dodges Ne3+} Bxf2 {[%emt 0:00:00]} 33. Kxf2 {[%emt 0:00:00][%mdl 4096] Endgame. And now Nxc5 would win. KRN-KRN} Rb8 {[%emt 0:00:00] [#]} (33... Re8 $14) 34. g4 $1 $16 {[%emt 0:00:00]} Nd4 {[%emt 0:00:00]} 35. b4 {[%emt 0:00:00]} cxb4 {[%emt 0:00:00][%mdl 8192] Black cannot hold the game after this.} (35... Ne6 $16) 36. Rxd4 $18 {[%emt 0:00:00]} bxa3 $16 {[%emt 0:03:30] [#] ...a2 is the strong threat. KRN-KR} 37. Rd3 $1 {[%emt 0:00:00]} (37. Rxd6 $2 {is the wrong capture.} a2 38. Rd1 Rb1 $19) 37... Rb4 {[%emt 0:00:00]} 38. Rxa3 {[%emt 0:00:00]} Rxc4 {[%emt 0:00:00]} 39. Nb6 {[%emt 0:00:00][%csl LRa6,LRc4]} Rb4 {[%emt 0:00:00]} 40. Rxa6 {[%emt 0:00:00]} Kf7 {[%emt 0:00:00]} 41. Nc8 {[%emt 0:21:23] White is clearly winning.} Ke6 {[%emt 0:18:50]} 42. Rxc6 {[%emt 0:00:10]} Kd7 {[%emt 0:00:09]} 43. Rb6 {[%emt 0:00:06]} (43. Rxd6+ Kxc8 44. Rd5 Rb7 $16) 43... Ra4 {[%emt 0:02:00]} 44. Nxd6 {[%emt 0:00:14]} Kc7 {[%emt 0:00:06]} 45. Rb7+ {[%emt 0:15:37]} Kxd6 {[%emt 0:00:06]} 46. Rxg7 {[%emt 0:00:30]} Kd5 {[%emt 0:13:49] Weighted Error Value: White=0.09 (flawless) /Black=0.27 (precise) .  Loses game:     	---       	Black=1      Mistake:       	White=2     	Black=1      Inaccurate:     	White=4     	Black=6      OK:         	White=17    	Black=8      Best:        	White=1     	---        Strong:       	White=2     	---        Brilliant:      	White=1     	---} 1-0

[Event "Bangabandhu Premier Div League 2023-24"]
[Site "Dhaka"]
[Date "2024.02.09"]
[Round "9.2"]
[White "Mohammad Nubairshah Shaikh"]
[Black "Pranav Vijay"]
[Result "1/2-1/2"]
[ECO "A22"]
[WhiteElo "2428"]
[BlackElo "2252"]
[Annotator "TA"]
[PlyCount "60"]
[EventDate "2024.02.01"]
[EventCountry "BAN"]
[SourceTitle "playchess.com"]
[Source "ChessBase"]
[SourceQuality "1"]
[TimeControl "40/5400+30:1800+30"]

{[%evp 12,60,10,9,30,18,19,12,44,43,34,31,39,38,74,72,95,98,89,62,75,77,79,69,74,65,81,97,62,53,79,82,108,107,112,101,148,143,177,183,178,146,174,0,188,0,168,0,154,0,154]} 1. Nf3 {[%emt 0:08:17]} Nf6 {[%emt 0:00:15]} 2. c4 {[%emt 0:00:11]} e6 {[%emt 0:00:14]} 3. Nc3 {[%emt 0:00:04]} Bb4 {[%emt 0:00:28]} 4. Qc2 {[%emt 0:00:02]} d6 {[%emt 0:01:34]} 5. g3 {[%emt 0:01:40]} O-O {[%emt 0:05:30]} 6. Bg2 {[%emt 0:01:59]} e5 {[%emt 0:07:06]} 7. O-O {[%emt 0:00:25]} c6 {[%emt 0:04:29]} 8. e4 {[%emt 0:01:34]} Re8 {[%emt 0:08:17]} 9. a3 {[%emt 0:11:59]} Ba5 {[%emt 0:00:30]} 10. b4 Bc7 {[%emt 0:04:34]} 11. d4 {[%emt 0:01:29][%cal Bd2d4,Bd4d5][%mdl 32]} Bg4 {[%emt 0:03:38]} 12. d5 {[%emt 0:05:27]} Nbd7 {[%emt 0:05:13]} 13. Nh4 {[%emt 0:05:55]} Rc8 {[%emt 0:05:06]} 14. h3 {[%emt 0:03:29]} Bh5 {[%emt 0:00:29]} 15. Bg5 {[%emt 0:00:38]} h6 {[%emt 0:12:45]} 16. Bd2 {[%emt 0:00:03] White is more active.} cxd5 {[%emt 0:06:13]} 17. cxd5 {[%emt 0:01:03]} ({But not} 17. Nxd5 b5 $11) 17... Nb6 {[%emt 0:02:05]} 18. Qb3 {[%emt 0:04:55] Dodges Nc4} Bb8 {[%emt 0:01:19]} 19. Rfc1 {[%emt 0:00:02]} a6 {[%emt 0:09:19]} 20. Bf1 {[%emt 0:04:32]} Nbd7 {[%emt 0:01:39]} 21. Be3 {[%emt 0:09:18]} Nh7 {[%emt 0:01:13]} 22. a4 {[%emt 0:03:35][%cal Ba3a4,Ba4a5][%mdl 32]} Ng5 {[%emt 0:02:18]} 23. a5 {[%emt 0:00:37]} Nf6 {[%emt 0:06:22]} (23... Nf3+ $142 24. Nxf3 Bxf3) 24. Bg2 $16 {[%emt 0:01:31]} Qd7 {[%emt 0:03:44]} 25. Kh2 {[%emt 0:01:37]} Rc7 {[%emt 0:04:46]} 26. Bb6 {[%emt 0:00:23]} Rcc8 {[%emt 0:00:07]} 27. Be3 {[%emt 0:00:47]} Rc7 $1 {[%emt 0:00:07]} 28. Bb6 {[%emt 0:00:18]} Rcc8 $1 {[%emt 0:01:27]} 29. Be3 {[%emt 0:03:31]} Rc7 $1 {[%emt 0:00:01]} 30. Bb6 {[%emt 0:00:05]} Rcc8 $1 {[%emt 0:00:03] Weighted Error Value: White=0.48/Black=0.11 (very precise) .  Mistake:       	---       	Black=1      Inaccurate:     	White=1     	Black=4      OK:         	White=8     	Black=6      Best:        	White=1     	---        Strong:       	---       	Black=4} 1/2-1/2

[Event "Bangabandhu Premier Div League 2023-24"]
[Site "Dhaka"]
[Date "2024.02.09"]
[Round "9.3"]
[White "Harikrishnan.A.Ra"]
[Black "Iniyan, Pa"]
[Result "1/2-1/2"]
[ECO "E66"]
[WhiteElo "2454"]
[BlackElo "2515"]
[Annotator "TA"]
[PlyCount "72"]
[EventDate "2024.02.01"]
[EventCountry "BAN"]
[SourceTitle "playchess.com"]
[Source "ChessBase"]
[SourceQuality "1"]
[TimeControl "40/5400+30:1800+30"]

{[%evp 17,72,20,21,12,5,7,8,2,48,29,27,24,69,63,59,17,18,17,2,1,6,10,11,0,5,20,5,15,12,2,58,47,208,202,155,138,125,149,151,147,160,158,155,157,156,149,145,107,113,1,22,-10,-14,-14,-10,-12,-8]} 1. Nf3 {[%emt 1:31:00]} Nf6 {[%emt 0:00:41]} 2. g3 g6 3. Bg2 {[%emt 0:00:00]} Bg7 {[%emt 0:00:43]} 4. d4 {[%emt 0:00:00][%cal Bd2d4,Bd4d5][%mdl 32]} c5 5. c4 O-O {[%emt 0:00:59]} 6. Nc3 {[%emt 0:00:00]} d6 7. O-O {[%emt 0:00:00]} Nc6 8. d5 {[%emt 0:00:00]} Na5 {[%emt 0:00:39]} 9. Nd2 {[%emt 0:00:00]} e6 {[%emt 0:00:12]} 10. Qc2 {[%emt 0:00:00]} Re8 {[%emt 0:01:02]} 11. e3 {[%emt 0:00:00]} exd5 {[%emt 0:01:17]} 12. cxd5 a6 (12... Ng4 $11) 13. b3 $14 b5 {[%emt 0:16:39]} 14. Bb2 {[%emt 0:00:00]} Ra7 {[%emt 0:06:51][%cal Ba8a7,Ba7g7,Bg7e7,Be7e1][%mdl 32]} 15. e4 Nh5 {[%emt 1:08:57]} 16. Nd1 {[%emt 0:07:30]} f5 $1 {[%emt 0:00:30]} 17. Bxg7 {[%emt 0:00:00]} Rxg7 {[%emt 0:00:00]} 18. f4 {[%emt 0:00:00]} g5 {[%emt 0:01:00]} (18... Nf6 {simplifies} 19. Nf2 Rge7 20. Qc3 Nxe4 21. Ndxe4 fxe4 22. Qe3 Nb7) 19. fxg5 {[%emt 0:00:00]} (19. exf5 gxf4 20. Nc3 fxg3 $17) 19... Qxg5 {[%emt 0:00:30]} 20. exf5 {[%emt 0:02:00]} Re2 $1 {[%emt 0:00:00] Strongly threatening ...Nxg3.} 21. Rf2 {[%emt 0:00:30]} Re1+ {[%emt 0:00:00]} 22. Nf1 {[%emt 0:00:30]} Rge7 {[%emt 0:01:30]} 23. Qb2 $36 {[%emt 0:00:30][%mdl 2048] Dodges Nf6. Hoping for f6. White fights for an advantage.} Qf6 {[%emt 0:00:30]} (23... Bxf5 $11 24. Nc3 Rxa1 25. Qxa1 Nf6) 24. Nc3 {[%emt 0:00:00][%cal Bd1c3,Bc3e4,Be4d6][%mdl 32] aiming for Rxe1.} Qd4 $2 {[%emt 0:00:00]} (24... Rxa1 $1 $14 25. Qxa1 b4) 25. Rxe1 $18 {[%emt 0:00:00]} Rxe1 {[%emt 0:00:00] [#]} 26. Ne4 $1 {[%emt 0:00:00][%mdl 512] Black must now prevent Qxd4.} Qxb2 {[%emt 0:00:00]} (26... Rxe4 $2 27. Bxe4 Qxb2 28. Rxb2 $18) 27. Rxb2 {[%emt 0:00:00]} Bxf5 {[%emt 0:00:00]} 28. Nxd6 {[%emt 0:00:00]} Bd3 {[%emt 0:00:00]} 29. Rd2 {[%emt 0:00:00]} Bg6 {[%emt 0:00:00]} 30. Kf2 {[%emt 0:00:00]} Re7 {[%emt 0:00:00]} 31. Ne3 {[%emt 0:00:00]} Nf6 {[%emt 0:04:00]} 32. Bh3 {[%emt 0:01:12] Inhibits Rd7.} Nb7 {[%emt 0:00:00] [#]} 33. Nc8 {[%emt 0:02:21]} (33. Be6+ Rxe6 34. Nxb7 (34. dxe6 Nxd6 35. Kf3 Nfe4 $11) 34... Ne4+ 35. Ke1 Re5 $11) (33. Nef5 $1 $16 {[%cal Rf5e7]} Bxf5 34. Nxf5 Ne4+ 35. Ke1 (35. Ke3 Re8 $11)) 33... Ne4+ {[%emt 0:00:00] The position is equal.} 34. Kg1 {[%emt 0:01:03]} (34. Ke1 $5 Re8 35. Bd7 $14) 34... Re8 {[%emt 0:01:30]} 35. Re2 {[%emt 0:01:24]} Nc3 {[%emt 0:00:00][%mdl 1024] Black has compensation.} 36. Re1 {[%emt 0:00:00]} Nxd5 {[%emt 0:00:00] Weighted Error Value: White=0.13 (very precise) /Black=0.18 (very precise) .  Loses game:     	---       	Black=1      Mistake:       	White=1     	Black=2      Inaccurate:     	White=2     	Black=1      OK:         	White=11    	Black=10     Best:        	White=4     	Black=4      Strong:       	---       	Black=2} 1/2-1/2

[Event "Bangabandhu Premier Div League 2023-24"]
[Site "Dhaka"]
[Date "2024.02.09"]
[Round "9.3"]
[White "Murshed, Niaz"]
[Black "Mayank Chakraborty"]
[Result "0-1"]
[ECO "D24"]
[WhiteElo "2363"]
[BlackElo "2409"]
[Annotator "TA"]
[PlyCount "74"]
[EventDate "2024.02.01"]
[EventCountry "BAN"]
[SourceTitle "playchess.com"]
[Source "ChessBase"]
[SourceQuality "1"]
[TimeControl "40/5400+30:1800+30"]

{[%evp 9,74,19,4,-2,0,-7,26,27,26,35,62,71,85,78,76,27,39,27,75,27,41,17,37,0,0,-18,-7,-10,-22,-25,-9,-58,-39,-41,-25,-25,-27,-75,-61,-54,-8,-8,-8,-36,-33,-48,-41,-42,-28,-30,-28,-34,-35,-35,-35,-63,-8,-67,-56,-171,-178,-178,-177,-214,-219,-1219,-1180]} 1. d4 {[%emt 0:00:02]} Nf6 {[%emt 0:02:18]} 2. c4 {[%emt 0:00:22]} e6 {[%emt 0:00:13]} 3. Nf3 {[%emt 0:00:07]} d5 {[%emt 0:00:04]} 4. Nc3 {[%emt 0:00:37]} dxc4 {[%emt 0:00:06]} 5. e4 {[%emt 0:00:11]} Bb4 {[%emt 0:00:11]} 6. Bxc4 {[%emt 0:00:30]} Nxe4 {[%emt 0:00:07]} 7. O-O {[%emt 0:00:16]} Nf6 {[%emt 0:00:07]} 8. Qa4+ $1 {[%emt 0:01:40] White has an edge.} Nc6 {[%emt 0:00:06]} 9. Ne5 {[%emt 0:00:34]} Bxc3 {[%emt 0:02:38]} 10. Nxc6 {[%emt 0:05:26]} bxc6 {[%emt 0:00:34]} 11. bxc3 {[%emt 0:00:28]} O-O {[%emt 0:04:24]} 12. Bg5 {[%emt 0:07:59]} ({White should play} 12. Re1 $16) 12... Qd6 $11 {[%emt 0:04:50]} 13. Qa5 {[%emt 0:05:04]} c5 {[%emt 0:21:40]} 14. Bxf6 {[%emt 0:13:45]} (14. Qxc5 Qxc5 15. dxc5 Bd7 $16) ({White should try} 14. dxc5 $16 Qc6 15. Rad1) 14... gxf6 {[%emt 0:00:05]} 15. dxc5 {[%emt 0:00:46]} (15. Qxc5 Qxc5 16. dxc5 Rd8 $11) 15... Qc6 {[%emt 0:05:33]} 16. Rfd1 {[%emt 0:07:58]} Kh8 {[%emt 0:04:32] [#] ...Rg8 is the strong threat.} 17. Qb5 {[%emt 0:06:32]} Bb7 {[%emt 0:01:24]} 18. Qxc6 {[%emt 0:13:10]} Bxc6 {[%emt 0:00:02]} 19. f4 {[%emt 0:00:15]} Rab8 {[%emt 0:02:29]} 20. Rd2 {[%emt 0:00:50] Dodges Rb2} (20. Rab1 $11) 20... Rfd8 {[%emt 0:01:06]} 21. Rad1 {[%emt 0:00:16]} Rxd2 {[%emt 0:00:37]} 22. Rxd2 $15 {[%emt 0:00:04][%mdl 4096] Endgame. KRB-KRB} Kg7 {[%emt 0:05:17]} 23. f5 {[%emt 0:01:14]} Rb1+ {[%emt 0:09:32]} 24. Kf2 {[%emt 0:00:12]} Rc1 {[%emt 0:05:48]} (24... exf5 $15 {is more appropriate.} 25. Rd8 f4 (25... Rb2+ 26. Ke3 $17)) 25. fxe6 $11 {[%emt 0:00:55]} Rxc3 {[%emt 0:11:04]} 26. Bb3 {[%emt 0:01:13]} fxe6 {[%emt 0:00:16]} (26... Rxc5 $2 {perishes.} 27. exf7 $18) 27. Bxe6 {[%emt 0:00:05]} Rxc5 {[%emt 0:00:11]} 28. g4 {[%emt 0:02:46]} h5 {[%emt 0:06:54]} 29. gxh5 {[%emt 0:04:58]} Rxh5 {[%emt 0:00:08]} 30. Kg3 {[%emt 0:00:24]} Re5 {[%emt 0:03:40]} 31. Bb3 {[%emt 0:00:40]} Re3+ {[%emt 0:01:48]} 32. Kf4 {[%emt 0:01:11]} Rf3+ {[%emt 0:02:09]} 33. Kg4 {[%emt 0:00:06]} Kg6 $1 {[%emt 0:01:45]} 34. Rc2 {[%emt 0:01:27]} (34. Bd5 $15 Rc3 35. Bxc6 Rc4+ (35... Rxc6 $2 36. Rd4 $19) 36. Kg3 Rxc6 37. Rb2) 34... f5+ $19 {[%emt 0:00:10]} 35. Kh4 {[%emt 0:00:04]} Rf4+ {[%emt 0:00:36]} 36. Kh3 {[%emt 0:00:04]} Be4 {[%emt 0:00:11]} 37. Rd2 $2 {[%emt 0:03:12] [#]} (37. Rxc7 Rg4 38. Rc2 Bxc2 39. Bxc2 a5 $19) (37. Rc3) 37... Kg5 {[%emt 0:01:00] Weighted Error Value: White=0.32/Black=0.09 (flawless) .  Mistake:       	White=6     	Black=2      Inaccurate:     	White=4     	Black=2      OK:         	White=12    	Black=14     Best:        	White=1     	Black=4      Strong:       	White=1     	Black=1} 0-1